fUSD/lending_fUSD_20240404
["ID","MTS","AMOUNT","RATE_DAILY","PERIOD"]
[321447745,1712193091148,-2123.79,0.00055068,120]
[321447746,1712193091158,-1084.08,0.00055068,120]
[321447747,1712193091168,-533.22443984,0.00055068,120]
[321447748,1712193091177,-507.05271296,0.00055068,120]
[321447749,1712193091187,-500.0,0.00055068,120]
[321447750,1712193091196,-500.0,0.00055068,120]
[321447751,1712193091205,-1184.27,0.00055068,120]
[321447752,1712193091215,-2804.05,0.00055068,120]
[321447753,1712193091224,-536.99412286,0.00055068,120]
[321447754,1712193091235,-517.02814557,0.00055068,120]
[321447755,1712193091245,-2343.79,0.00055068,120]
[321447756,1712193091255,-500.0,0.00055068,2]
[321447757,1712193091265,-500.0,0.00055068,120]
[321447758,1712193091275,-500.0,0.00055068,120]
[321447759,1712193091284,-500.0,0.00055068,120]
[321447760,1712193091294,-1765.59,0.00055068,120]
[321447761,1712193091304,-2784.63,0.00055068,120]
[321447762,1712193091314,-628.20453023,0.00055068,120]
[321447763,1712193091324,-1991.29,0.00055068,120]
[321447764,1712193091334,-500.0,0.00055068,120]
[321447765,1712193091344,-834.18,0.00055068,120]
[321447766,1712193091354,-500.0,0.00055068,120]
[321447767,1712193091363,-4961.7,0.00055068,120]
[321447768,1712193091376,-4454.06,0.00055068,120]
[321447769,1712193091386,-2195.47,0.00055068,120]
[321447770,1712193091395,-1710.19,0.00055068,7]
[321447771,1712193091404,-500.0,0.00055068,120]
[321447772,1712193091413,-2804.52,0.00055068,120]
[321447773,1712193091422,-881.43,0.00055068,120]
[321447774,1712193091432,-500.0,0.00055068,120]
[321447775,1712193091441,-500.0,0.00055068,120]
[321447776,1712193091451,-3860.65,0.00055068,120]
[321447777,1712193091461,-2715.8,0.00055068,120]
[321447778,1712193091470,-3126.11,0.00055068,120]
[321447779,1712193091479,-500.0,0.00055068,120]
[321447780,1712193091489,-1941.18,0.00055068,120]
[321447781,1712193091498,-500.0,0.00055068,120]
[321447782,1712193091507,-507.71569604,0.00055068,120]
[321447783,1712193091516,-536.12938898,0.00055068,120]
[321447784,1712193091526,-4326.4,0.00055068,120]
[321447785,1712193091535,-1335.88,0.00055068,120]
[321447786,1712193091544,-1892.19,0.00055068,120]
[321447787,1712193091554,-500.0,0.00055068,120]
[321447788,1712193091563,-1776.74,0.00055068,120]
[321447789,1712193091571,-500.0,0.00055068,120]
[321447790,1712193091581,-6695.59,0.00055068,120]
[321447791,1712193091590,-500.0,0.00055068,120]
[321447792,1712193091600,-500.0,0.00055068,120]
[321447793,1712193091609,-769.75,0.00055068,120]
[321447794,1712193091620,-500.0,0.00055068,120]
[321447795,1712193091629,-5629.68,0.00055068,120]
[321447796,1712193091639,-2122.98,0.00055068,21]
[321447797,1712193091648,-500.0,0.00055068,120]
[321447798,1712193091658,-500.0,0.00055068,120]
[321447799,1712193091667,-1094.92,0.00055068,120]
[321447800,1712193091677,-500.0,0.00055068,120]
[321447801,1712193091686,-374.62451444,0.00055068,2]
[321447802,1712193091696,-500.0,0.00055068,120]
[321447803,1712193091705,-500.0,0.00055068,120]
[321447804,1712193091716,-779.43,0.00055068,120]
[321447805,1712193091727,-2056.95,0.00055068,120]
[321447806,1712193091737,-500.0,0.00055068,120]
[321447807,1712193091746,-1000.0,0.0005507,30]
[321447808,1712193091755,-400.0,0.0005507,30]
[321447809,1712193091766,-150.0,0.0005507,120]
[321447810,1712193091775,-150.0,0.00055071,14]
[321447811,1712193091785,-150.0,0.00055071,14]
[321447812,1712193091795,-421.08106086,0.00055072,120]
[321447813,1712193091805,-191.47483542,0.00055072,120]
[321447814,1712193091815,-150.0,0.00055077,120]
[321447815,1712193091824,-150.0,0.00055077,14]
[321447816,1712193091833,-300000.0992819,0.0005508,30]
[321447817,1712193091843,-150.0,0.00055082,120]
[321447818,1712193091852,-421.08106086,0.00055083,120]
[321447819,1712193091862,-191.47483542,0.00055083,120]
[321447820,1712193091873,-200.0,0.00055085,15]
[321447821,1712193091882,-325.72816251,0.00055085,40]
[321447822,1712193091891,-167.01357355,0.00055093,99]
[321447823,1712193091900,-150.0,0.00055093,120]
[321447824,1712193091909,-421.08106086,0.00055094,120]
[321447825,1712193091918,-191.47483542,0.00055094,120]
[321447826,1712193091927,-150.0,0.00055095,14]
[321447827,1712193092021,-150.0,0.00055099,14]
[321447828,1712193092030,-3000.0,0.000551,90]
[321447829,1712193092040,-300.0,0.000551,15]
[321447830,1712193092049,-150.0,0.000551,12]
[321447831,1712193092058,-421.08106086,0.00055104,120]
[321447832,1712193092068,-191.47483542,0.00055104,120]
[321447833,1712193092077,-150.0,0.00055105,120]
[321447834,1712193092086,-150.0,0.00055112,120]
[321447835,1712193092095,-421.08106086,0.00055115,120]
[321447836,1712193092104,-191.47483542,0.00055115,120]
[321447837,1712193092114,-150.0,0.00055116,120]
[321447838,1712193092124,-151.0,0.00055123,120]
[321447839,1712193092133,-300.0,0.00055125,14]
[321447840,1712193092143,-421.08106086,0.00055126,120]
[321447841,1712193092152,-191.47483542,0.00055126,120]
[321447842,1712193092161,-150.0,0.00055128,120]
[321447843,1712193092172,-150.0,0.00055135,14]
[321447844,1712193092181,-421.08106086,0.00055136,120]
[321447845,1712193092191,-191.47483542,0.00055136,120]
[321447846,1712193092201,-150.0,0.00055139,120]
[321447847,1712193092211,-150.0,0.00055143,14]
[321447848,1712193092221,-421.08106086,0.00055147,120]
[321447849,1712193092230,-191.47483542,0.00055147,120]
[321447850,1712193092239,-150.0,0.00055147,120]
[321447851,1712193092249,-150.0,0.00055147,120]
[321447852,1712193092259,-150.0,0.00055147,120]
[321447853,1712193092268,-150.0,0.00055151,120]
[321447854,1712193092277,-3170.77637,0.00055152,30]
[321447855,1712193092287,-150.0,0.00055153,14]
[321447856,1712193092296,-150.0,0.00055157,14]
[321447857,1712193092306,-421.08106086,0.00055158,120]
[321447858,1712193092315,-191.47483542,0.00055158,120]
[321447859,1712193092324,-150.0,0.00055162,120]
[321447860,1712193092333,-150.0,0.00055163,60]
[321447861,1712193092342,-421.08106086,0.00055168,120]
[321447862,1712193092351,-191.47483542,0.00055168,120]
[321447863,1712193092360,-150.0,0.0005517,14]
[321447864,1712193092370,-300.0,0.00055173,14]
[321447865,1712193092380,-150.0,0.00055174,120]
[321447866,1712193092389,-421.08106086,0.00055179,120]
[321447867,1712193092398,-191.47483542,0.00055179,120]
[321447868,1712193092408,-150.0,0.00055182,14]
[321447869,1712193092418,-150.0,0.00055182,120]
[321447870,1712193092428,-150.0,0.00055185,120]
[321447871,1712193092438,-421.08106086,0.0005519,120]
[321447872,1712193092448,-191.47483542,0.0005519,120]
[321447873,1712193092458,-150.0,0.00055197,120]
[321447874,1712193092467,-150.0,0.00055199,14]
[321447875,1712193092476,-421.08106086,0.000552,120]
[321447876,1712193092485,-191.47483542,0.000552,120]
[321447877,1712193092495,-500.0,0.00055205,120]
[321447878,1712193092504,-150.0,0.00055208,120]
[321447879,1712193092513,-150.0,0.00055211,14]
[321447880,1712193092522,-421.08106086,0.00055211,120]
[321447881,1712193092531,-191.47483542,0.00055211,120]
[321447882,1712193092540,-150.0,0.00055218,120]
[321447883,1712193092549,-150.0,0.00055218,120]
[321447884,1712193092558,-150.0,0.0005522,120]
[321447885,1712193092567,-421.08106086,0.00055222,120]
[321447886,1712193092576,-191.47483542,0.00055222,120]
[321447887,1712193092586,-150.0,0.00055225,14]
[321447888,1712193092595,-150.0,0.00055231,120]
[321447889,1712193092604,-421.08106086,0.00055232,120]
[321447890,1712193092614,-191.47483542,0.00055232,120]
[321447891,1712193092624,-150.0,0.00055234,14]
[321447892,1712193092634,-150.0,0.00055237,14]
[321447893,1712193092643,-150.0,0.00055243,120]
[321447894,1712193092653,-150.0,0.00055243,14]
[321447895,1712193092662,-421.08106086,0.00055243,120]
[321447896,1712193092671,-191.47483542,0.00055243,120]
[321447897,1712193092681,-150.0,0.00055248,14]
[321447898,1712193092690,-150.0,0.00055251,14]
[321447899,1712193092699,-150.0,0.00055253,120]
[321447900,1712193092709,-421.08106086,0.00055254,120]
[321447901,1712193092721,-191.47483542,0.00055254,120]
[321447902,1712193092730,-150.0,0.00055254,120]
[321447903,1712193092739,-150.0,0.00055259,14]
[321447904,1712193092748,-421.08106086,0.00055265,120]
[321447905,1712193092759,-191.47483542,0.00055265,120]
[321447906,1712193092768,-150.0,0.00055265,14]
[321447907,1712193092777,-150.0,0.00055266,120]
[321447908,1712193092788,-150.0,0.00055268,14]
[321447909,1712193092797,-421.08106086,0.00055275,120]
[321447910,1712193092806,-191.47483542,0.00055275,120]
[321447911,1712193092816,-150.0,0.00055277,120]
[321447912,1712193092826,-421.08106086,0.00055286,120]
[321447913,1712193092835,-191.47483542,0.00055286,120]
[321447914,1712193092844,-150.0,0.00055287,14]
[321447915,1712193092853,-150.0,0.00055288,120]
[321447916,1712193092862,-150.0,0.00055289,120]
[321447917,1712193092872,-150.0,0.00055289,14]
[321447918,1712193092882,-156.72192395,0.00055295,120]
[321447919,1712193092891,-508.14794992,0.00055295,120]
[321447920,1712193092901,-421.08106086,0.00055297,120]
[321447921,1712193092910,-191.47483542,0.00055297,120]
[321447922,1712193092920,-150.0,0.00055298,14]
[321447923,1712193092929,-1005.96,0.000553,2]
[321447924,1712193092939,-1000.0,0.000553,7]
[321447925,1712193092948,-150.0,0.000553,120]
[321447926,1712193092958,-150.0,0.00055302,14]
[321447927,1712193092967,-150.0,0.00055304,14]
[321447928,1712193092976,-150.0,0.00055307,14]
[321447929,1712193092986,-421.08106086,0.00055307,120]
[321447930,1712193092995,-191.47483542,0.00055307,120]
[321447931,1712193093005,-150.0,0.00055312,120]
[321447932,1712193093014,-150.0,0.00055313,14]
[321447933,1712193093023,-1131.11,0.00055315,120]
[321447934,1712193093033,-421.08106086,0.00055318,120]
[321447935,1712193093042,-191.47483542,0.00055318,120]
[321447936,1712193093052,-150.0,0.00055323,120]
[321447937,1712193093061,-150.0,0.00055323,120]
[321447938,1712193093071,-150.0,0.00055323,120]
[321447939,1712193093080,-150.0,0.00055323,120]
[321447940,1712193093089,-150.0,0.00055326,14]
[321447941,1712193093099,-150.0,0.00055328,14]
[321447942,1712193093108,-421.08106086,0.00055329,120]
[321447943,1712193093118,-191.47483542,0.00055329,120]
[321447944,1712193093127,-150.0,0.00055335,120]
[321447945,1712193093136,-150.0,0.00055337,14]
[321447946,1712193093145,-421.08106086,0.00055339,120]
[321447947,1712193093154,-191.47483542,0.00055339,120]
[321447948,1712193093163,-497.61100845,0.00055342,120]
[321447949,1712193093173,-535.31655842,0.00055342,120]
[321447950,1712193093182,-500.0,0.00055342,120]
[321447951,1712193093191,-743.5,0.00055342,120]
[321447952,1712193093200,-616.76,0.00055342,120]
[321447953,1712193093210,-513.38174815,0.00055342,120]
[321447954,1712193093220,-511.27847819,0.00055342,120]
[321447955,1712193093229,-514.23452856,0.00055342,120]
[321447956,1712193093238,-500.0,0.00055342,120]
[321447957,1712193093247,-430.64318271,0.00055342,120]
[321447958,1712193093257,-500.0,0.00055342,120]
[321447959,1712193093267,-520.45065928,0.00055342,120]
[321447960,1712193093276,-500.0,0.00055342,120]
[321447961,1712193093285,-500.0,0.00055342,120]
[321447962,1712193093294,-500.0,0.00055342,120]
[321447963,1712193093303,-500.0,0.00055342,120]
[321447964,1712193093313,-777.46,0.00055342,120]
[321447965,1712193093321,-532.88913094,0.00055342,120]
[321447966,1712193093330,-500.0,0.00055342,120]
[321447967,1712193093338,-607.7,0.00055342,120]
[321447968,1712193093347,-500.0,0.00055342,120]
[321447969,1712193093356,-500.0,0.00055342,120]
[321447970,1712193093365,-1000.0,0.00055342,120]
[321447971,1712193093374,-500.0,0.00055342,120]
[321447972,1712193093382,-509.84126862,0.00055342,120]
[321447973,1712193093391,-627.53,0.00055342,120]
[321447974,1712193093400,-500.0,0.00055342,120]
[321447975,1712193093409,-500.0,0.00055342,120]
[321447976,1712193093418,-500.0,0.00055342,120]
[321447977,1712193093427,-595.85,0.00055342,120]
[321447978,1712193093436,-835.6,0.00055342,120]
[321447979,1712193093447,-500.0,0.00055342,120]
[321447980,1712193093457,-500.0,0.00055342,120]
[321447981,1712193093466,-323.16998493,0.00055342,120]
[321447982,1712193093475,-500.0,0.00055342,120]
[321447983,1712193093484,-500.0,0.00055342,120]
[321447984,1712193093494,-500.0,0.00055342,120]
[321447985,1712193093503,-636.55,0.00055342,120]
[321447986,1712193093512,-639.28,0.00055342,120]
[321447987,1712193093522,-500.0,0.00055342,120]
[321447988,1712193093532,-518.34381203,0.00055342,120]
[321447989,1712193093541,-230.91954058,0.00055342,120]
[321447990,1712193093551,-500.0,0.00055342,120]
[321447991,1712193093560,-727.44,0.00055342,120]
[321447992,1712193093570,-516.03,0.00055342,120]
[321447993,1712193093580,-500.0,0.00055342,120]
[321447994,1712193093589,-500.0,0.00055342,120]
[321447995,1712193093598,-500.0,0.00055342,120]
[321447996,1712193093607,-500.0,0.00055342,120]
[321447997,1712193093616,-514.06670516,0.00055342,120]
[321447998,1712193093628,-500.0,0.00055342,120]
[321447999,1712193093637,-694.85,0.00055342,120]
[321448000,1712193093646,-511.39108266,0.00055342,120]
[321448001,1712193093657,-582.69,0.00055342,120]
[321448002,1712193093667,-500.0,0.00055342,120]
[321448003,1712193093676,-500.0,0.00055342,120]
[321448004,1712193093686,-576.96,0.00055342,120]
[321448005,1712193093694,-1652.9,0.00055342,2]
[321448006,1712193093706,-531.62405478,0.00055342,120]
[321448007,1712193093717,-392.1426471,0.00055342,120]
[321448008,1712193096121,-150.0,0.00032126,2]
[321448009,1712193096134,-107.14504227,0.00041,2]
[321448010,1712193096169,-43.15495773,0.00041,2]
[321448011,1712193096181,-150.3,0.00041,2]
[321448012,1712193096193,-150.3,0.00041,2]
[321448013,1712193096204,-15.27120314,0.00041,2]
[321448014,1712193098018,-405.83051062,0.00024893,2]
[321448015,1712193098028,-160.90599034,0.000249,2]
[321448016,1712193098044,-244.92452028,0.000249,2]
[321448017,1712193098055,-183.91611577,0.0004,2]
[321448018,1712193098068,-1018.08388423,0.0004,2]
[321448019,1712193098079,-135.02879686,0.00041,2]
[321448020,1712193098090,-150.3,0.00041,2]
[321448021,1712193098100,-94.62126869,0.00041,2]
[321448022,1712193098119,-55.67873131,0.00041,2]
[321448023,1712193098130,-150.3,0.00041,2]
[321448024,1712193098140,-150.3,0.00041,2]
[321448025,1712193098150,-27.48626147,0.00041,2]
[321448026,1712193098167,-122.81373853,0.00041,2]
[321448027,1712193098177,-150.3,0.00041,2]
[321448028,1712193098187,-150.3,0.00041,2]
[321448029,1712193098197,-150.3,0.00041,2]
[321448030,1712193098207,-29.40686134,0.00041,2]
[321448031,1712193098219,-120.89313866,0.00041,2]
[321448032,1712193098228,-150.3,0.00041,2]
[321448033,1712193098238,-150.3,0.00041,2]
[321448034,1712193098247,-150.3,0.00041,2]
[321448035,1712193098257,-150.3,0.00041,2]
[321448036,1712193098267,-150.3,0.00041,2]
[321448037,1712193098278,-150.3,0.00041,2]
[321448038,1712193098287,-150.3,0.00041,2]
[321448039,1712193098297,-150.3,0.00041,2]
[321448040,1712193098307,-150.3,0.00041,2]
[321448041,1712193098316,-150.3,0.00041,2]
[321448042,1712193098326,-150.3,0.00041,2]
[321448043,1712193098335,-21.17428055,0.00041,2]
[321448048,1712193229434,-1031.39457924,0.00020159,2]
[321448049,1712193229455,-731.96290075,0.00020159,2]
[321448050,1712193229476,-275.49023351,0.00024798,2]
[321448051,1712193229498,-2500.0,0.00024799,2]
[321448052,1712193229518,-9927.1522865,0.00024799,2]
[321448053,1712193281075,10000.0,0.00040735,30]
[321448054,1712193338604,250.0,0.00023,3]
[321448055,1712193338673,561.1982,0.00019959,2]
[321448056,1712193532311,2726.97331418,0.00019959,2]
[321448057,1712193565688,402.0571525,0.00019957,2]
[321448058,1712193610673,210.8435184,0.00019959,2]
[321448059,1712193976624,-291.0,0.00020056,2]
[321448060,1712193976644,-5615.096,0.00020059,2]
[321448061,1712193976665,-1063.44500986,0.000244,2]
[321448062,1712193976685,-150.0,0.00024699,2]
[321448063,1712193976704,-2282.2949,0.000247,2]
[321448064,1712193976724,-295.3385,0.000247,2]
[321448065,1712193976744,-300.6245554,0.00024798,2]
[321448066,1712193976763,-502.20103474,0.00024799,2]
[321448067,1712194041140,-150.0,0.00024798,2]
[321448068,1712194041163,-86.18855334,0.00024799,2]
[321448069,1712194227392,500.7223,0.00040552,30]
[321448078,1712194232038,-2998.17968614,0.00024797,2]
[321448079,1712194232051,-1000.0,0.00024798,2]
[321448080,1712194232060,-218.6776852,0.00024798,2]
[321448081,1712194232069,-180.48461179,0.00024798,2]
[321448082,1712194232079,-150.0,0.00024798,2]
[321448083,1712194232088,-25211.90973979,0.00024799,2]
[321448084,1712194232100,-2401.13681457,0.00024799,2]
[321448085,1712194232111,-15686.10227106,0.00024799,2]
[321448086,1712194232121,-3789.0745931,0.00024799,2]
[321448087,1712194232133,-179.37444382,0.00024799,2]
[321448088,1712194232143,-500.0,0.000248,2]
[321448089,1712194232152,-3195.75841881,0.000248,2]
[321448090,1712194232206,-1207.64325977,0.000248,2]
[321448118,1712194237997,-10711.31230601,0.000248,2]
[321448137,1712194238271,-229885.28601541,0.000248,2]
[321448138,1712194238280,-1442.11523096,0.00024898,2]
[321448139,1712194238289,-300.0,0.00024999,2]
[321448140,1712194238299,-300.0,0.00024999,2]
[321448141,1712194238308,-300.0,0.00024999,2]
[321448142,1712194238318,-300.0,0.00024999,2]
[321448143,1712194238327,-300.0,0.00024999,2]
[321448144,1712194238338,-178.40454926,0.00024999,2]
[321448145,1712194238347,-2600.3152557,0.00025,2]
[321448146,1712194238356,-300.0,0.00025,3]
[321448147,1712194238366,-499.99,0.00025,2]
[321448148,1712194238375,-350.0,0.00027,3]
[321448149,1712194238385,-560.58443518,0.00029,2]
[321448150,1712194238394,-400.0,0.00029,3]
[321448151,1712194238403,-440.96392074,0.000295,3]
[321448152,1712194238413,-2639.48076778,0.0002999,2]
[321448153,1712194238422,-405.14841286,0.0003,4]
[321448154,1712194238432,-155.0,0.0003,2]
[321448155,1712194238442,-3205.84389542,0.0003,2]
[321448156,1712194238451,-606.55912079,0.0003,4]
[321448157,1712194238461,-206.0,0.0003,2]
[321448158,1712194238470,-1209.10340715,0.0003,4]
[321448159,1712194238480,-450.0,0.00031,3]
[321448160,1712194238490,-473.90371975,0.00032,4]
[321448161,1712194238500,-156.25,0.00032877,2]
[321448162,1712194238509,-156.25,0.00032877,2]
[321448163,1712194238518,-500.0,0.00033,3]
[321448164,1712194238529,-354.0,0.000338,2]
[321448165,1712194238540,-9053.58976532,0.000348,4]
[321448166,1712194238550,-1281.21723531,0.00035,4]
[321448167,1712194238559,-550.0,0.00035,3]
[321448168,1712194238569,-30000.0,0.00036,3]
[321448169,1712194238579,-374.89,0.00036628,2]
[321448170,1712194238592,-600.0,0.00037,3]
[321448171,1712194238602,-281.33,0.0003714,2]
[321448172,1712194238613,-1000.0,0.00038112,2]
[321448173,1712194238622,-489.98833825,0.000385,4]
[321448174,1712194238631,-338.94,0.00038743,2]
[321448175,1712194238641,-4216.29442521,0.000388,2]
[321448176,1712194238650,-4064.11230153,0.000389,15]
[321448177,1712194238659,-250.0,0.00038936,112]
[321448178,1712194238669,-650.0,0.00039,3]
[321448179,1712194238678,-628.76,0.00039068,15]
[321448180,1712194238688,-279.16,0.00039124,2]
[321448181,1712194238697,-150.0,0.00039181,120]
[321448182,1712194238706,-284.28,0.00039327,2]
[321448183,1712194238716,-281.33,0.00039404,2]
[321448184,1712194238726,-698.65,0.00039446,2]
[321448185,1712194238736,-150.0,0.00039468,120]
[321448186,1712194238745,-150.0,0.00039625,2]
[321448187,1712194238754,-1065.99436859,0.0003992,2]
[321448188,1712194238763,-547.00820039,0.0004,4]
[321448189,1712194238772,-2400.00191258,0.0004,30]
[321448190,1712194238782,-7196.47160708,0.0004,4]
[321448191,1712194238791,-22098.16965284,0.0004,4]
[321448192,1712194238799,-192.70693193,0.0004,2]
[321448193,1712194238809,-907.10897983,0.0004,30]
[321448194,1712194238818,-4830.5,0.00040106,2]
[321448195,1712194238827,-1146.42337199,0.0004018,2]
[321448196,1712194238838,-1000.0,0.00040324,2]
[321448197,1712194238846,-200.0,0.00040349,2]
[321448198,1712194238856,-279.52300476,0.00040349,2]
[321448199,1712194238865,-5000.0,0.00040547,25]
[321448200,1712194238874,-150.0,0.00040547,2]
[321448201,1712194238883,-150.0,0.00040547,2]
[321448202,1712194238892,-200.0,0.00040547,2]
[321448203,1712194238901,-1617.0,0.00040552,30]
[321448204,1712194238910,-998.46,0.000406,2]
[321448205,1712194238919,-150.0,0.00040683,2]
[321448206,1712194238928,-275.5,0.000407,2]
[321448207,1712194238938,-653.11887794,0.00040735,30]
[321448208,1712194238947,-389.32561534,0.00040735,15]
[321448209,1712194238957,-200.0,0.00040735,2]
[321448210,1712194238966,-175.23267945,0.00040735,2]
[321448211,1712194238975,-389.32561534,0.00040735,15]
[321448212,1712194238984,-653.11887794,0.00040735,30]
[321448213,1712194238993,-3352.54061562,0.00040735,4]
[321448214,1712194239002,-1828.54434568,0.00040735,10]
[321448215,1712194239011,-175.23267945,0.00040735,2]
[321448216,1712194239022,-255.9583516,0.00040735,30]
[321448217,1712194239031,-150.0,0.00040938,120]
[321448218,1712194239040,-539.75528474,0.00040996,13]
[321448219,1712194239051,-2968.68409851,0.00041,4]
[321448220,1712194239062,-700.0,0.00041,3]
[321448221,1712194239073,-1737.25398996,0.00041,4]
[321448222,1712194239084,-1000.0,0.00041096,5]
[321448223,1712194239094,-1000.0,0.00041096,5]
[321448224,1712194239102,-1000.0,0.00041096,5]
[321448225,1712194239113,-1000.0,0.00041096,5]
[321448226,1712194239122,-1000.0,0.00041096,5]
[321448227,1712194239131,-1000.0,0.00041096,5]
[321448228,1712194239141,-468.0,0.00041096,5]
[321448229,1712194239151,-183.0,0.00041096,2]
[321448230,1712194239161,-281.33,0.00041668,2]
[321448231,1712194239170,-150.0,0.00041742,2]
[321448232,1712194239180,-628.76,0.00041808,15]
[321448233,1712194239189,-279.16,0.00041864,2]
[321448234,1712194239198,-8507.35906437,0.00041877,7]
[321448235,1712194239207,-5000.0,0.00041877,10]
[321448236,1712194239218,-5000.0,0.00041877,6]
[321448237,1712194239228,-5000.0,0.00041877,6]
[321448238,1712194239240,-998.46,0.00042095,2]
[321448239,1712194239250,-180.0,0.00042336,2]
[321448240,1712194239262,-150.0,0.000428,2]
[321448241,1712194239271,-1000.0,0.00042876,2]
[321448242,1712194239282,-721.41904155,0.00043,4]
[321448243,1712194239293,-750.0,0.00043,3]
[321448244,1712194239302,-156.25,0.00043288,2]
[321448245,1712194239312,-998.46,0.0004359,2]
[321448246,1712194239322,-666.0,0.00043835,2]
[321448247,1712194239331,-176.73,0.00043836,2]
[321448248,1712194239342,-150.0,0.00043859,2]
[321448249,1712194239352,-281.33,0.00043932,2]
[321448250,1712194239361,-150.0,0.00044,44]
[321448251,1712194239371,-628.76,0.00044548,15]
[321448252,1712194239380,-279.16,0.00044604,2]
[321448253,1712194239390,-150.0,0.00044609,120]
[321448254,1712194239399,-150.0,0.00044917,2]
[321448255,1712194239408,-328.38424403,0.00045,4]
[321448256,1712194239417,-800.0,0.00045,3]
[321448257,1712194239427,-30000.0,0.00045,4]
[321448258,1712194239436,-703.33201365,0.00045,30]
[321448259,1712194239445,-998.46,0.00045085,2]
[321448260,1712194239455,-150.0,0.00045976,2]
[321448261,1712194239464,-281.33,0.00046196,2]
[321448262,1712194239474,-666.0,0.00046575,2]
[321448263,1712194239483,-998.46,0.0004658,2]
[321448264,1712194239492,-850.0,0.00047,3]
[321448265,1712194239502,-10000.0,0.00047,2]
[321448266,1712194239511,-150.0,0.00047034,2]
[321448267,1712194239520,-205.08721929,0.00047283,7]
[321448268,1712194239530,-628.76,0.00047288,15]
[321448269,1712194239540,-1000.0,0.0004764,2]
[321448270,1712194239549,-644.0,0.00047945,7]
[321448271,1712194239558,-176.73,0.00047945,2]
[321448272,1712194239568,-10000.0,0.00048,2]
[321448273,1712194239578,-151.0,0.00048,120]
[321448274,1712194239588,-998.46,0.00048075,2]
[321448275,1712194239598,-150.0,0.00048093,2]
[321448276,1712194239607,-281.33,0.00048459,2]
[321448277,1712194239617,-151.0,0.00048795,120]
[321448278,1712194239627,-1211.0,0.00049,4]
[321448279,1712194239636,-900.0,0.00049,3]
[321448280,1712194239646,-10000.0,0.00049,2]
[321448281,1712194239655,-150.0,0.00049023,120]
[321448282,1712194239665,-150.0,0.00049151,2]
[321448283,1712194239675,-1077.90639291,0.00049259,5]
[321448284,1712194239684,-873.94226474,0.00049313,4]
[321448285,1712194239694,-666.0,0.00049315,2]
[321448286,1712194239704,-1000.0,0.00049315,60]
[321448287,1712194239713,-440.0854,0.0004939,2]
[321448288,1712194239723,-151.29625457,0.00049468,30]
[321448289,1712194239732,-150.54,0.0004948,120]
[321448290,1712194239742,-393.98,0.00049489,15]
[321448291,1712194239751,-393.98,0.00049489,15]
[321448292,1712194239761,-393.98,0.00049489,15]
[321448293,1712194239770,-393.98,0.00049489,15]
[321448294,1712194239780,-393.98,0.00049489,15]
[321448295,1712194239789,-393.98,0.00049489,15]
[321448296,1712194239799,-393.98,0.00049489,15]
[321448297,1712194239808,-393.98,0.00049489,15]
[321448298,1712194239817,-393.98,0.00049489,15]
[321448299,1712194239826,-394.05,0.00049489,15]
[321448300,1712194239835,-217728.50616755,0.0004949,15]
[321448301,1712194239845,-998.46,0.0004957,2]